fUSD/lending_fUSD_20241127
["ID","MTS","AMOUNT","RATE_DAILY","PERIOD"]
[343587322,1732739439828,-500.0,9.999e-05,2]
[343587323,1732739439837,-500.0,9.999e-05,2]
[343587324,1732739439847,-500.0,9.999e-05,2]
[343587325,1732739439856,-404.27873994,9.999e-05,2]
[343587326,1732739439867,-500.0,9.999e-05,2]
[343587327,1732739439877,-500.0,9.999e-05,2]
[343587328,1732739439888,-500.0,9.999e-05,2]
[343587329,1732739439897,-500.0,9.999e-05,2]
[343587330,1732739439907,-600.34,9.999e-05,2]
[343587331,1732739439916,-500.0,9.999e-05,2]
[343587332,1732739439925,-500.0,9.999e-05,2]
[343587333,1732739439935,-500.0,9.999e-05,2]
[343587334,1732739439944,-500.0,9.999e-05,2]
[343587335,1732739439953,-500.0,9.999e-05,2]
[343587336,1732739439963,-500.0,9.999e-05,2]
[343587337,1732739439972,-500.0,9.999e-05,2]
[343587338,1732739439981,-636.38,9.999e-05,2]
[343587339,1732739439991,-500.0,9.999e-05,2]
[343587340,1732739440000,-500.0,9.999e-05,2]
[343587341,1732739440009,-500.0,9.999e-05,2]
[343587342,1732739440019,-500.0,9.999e-05,2]
[343587343,1732739440028,-500.0,9.999e-05,2]
[343587344,1732739440037,-194.32,9.999e-05,2]
[343587345,1732739440047,-500.0,9.999e-05,2]
[343587346,1732739440056,-500.0,9.999e-05,2]
[343587347,1732739440065,-500.0,9.999e-05,2]
[343587348,1732739440074,-500.0,9.999e-05,2]
[343587349,1732739440084,-517.26,9.999e-05,2]
[343587350,1732739440093,-500.0,9.999e-05,2]
[343587351,1732739440102,-500.0,9.999e-05,2]
[343587352,1732739440111,-500.0,9.999e-05,2]
[343587353,1732739440122,-500.0,9.999e-05,2]
[343587354,1732739440131,-500.0,9.999e-05,2]
[343587355,1732739440143,-500.0,9.999e-05,2]
[343587356,1732739440152,-500.0,9.999e-05,2]
[343587357,1732739440161,-269.95863488,9.999e-05,2]
[343587359,1732739440170,-500.0,9.999e-05,2]
[343587361,1732739440180,-500.0,9.999e-05,2]
[343587363,1732739440189,-500.0,9.999e-05,2]
[343587366,1732739440200,-500.0,9.999e-05,2]
[343587368,1732739440209,-500.0,9.999e-05,2]
[343587370,1732739440218,-500.0,9.999e-05,2]
[343587372,1732739440228,-537.2934788,9.999e-05,2]
[343587373,1732739440237,-500.0,9.999e-05,2]
[343587374,1732739440248,-500.0,9.999e-05,2]
[343587375,1732739440257,-500.0,9.999e-05,2]
[343587376,1732739440267,-243.57,9.999e-05,2]
[343587377,1732739440275,-500.0,9.999e-05,2]
[343587378,1732739440286,-500.0,9.999e-05,2]
[343587379,1732739440296,-500.0,9.999e-05,2]
[343587380,1732739440307,-500.0,9.999e-05,2]
[343587381,1732739440318,-441.02,9.999e-05,2]
[343587382,1732739440328,-500.0,9.999e-05,2]
[343587383,1732739440337,-500.0,9.999e-05,2]
[343587384,1732739440346,-500.0,9.999e-05,2]
[343587385,1732739440355,-582.38,9.999e-05,2]
[343587386,1732739440365,-500.0,9.999e-05,2]
[343587387,1732739440374,-500.0,9.999e-05,2]
[343587388,1732739440384,-574.67,9.999e-05,2]
[343587389,1732739440396,-500.0,9.999e-05,2]
[343587390,1732739440406,-500.0,9.999e-05,2]
[343587391,1732739440415,-254.8,9.999e-05,2]
[343587392,1732739440424,-534.68491575,9.999e-05,2]
[343587393,1732739440434,-645.43,9.999e-05,2]
[343587394,1732739440443,-500.0,9.999e-05,2]
[343587395,1732739440453,-500.0,9.999e-05,2]
[343587396,1732739440462,-515.98,9.999e-05,2]
[343587397,1732739440471,-500.0,9.999e-05,2]
[343587398,1732739440480,-500.0,9.999e-05,2]
[343587399,1732739440490,-630.17,9.999e-05,2]
[343587400,1732739440501,-561.04,9.999e-05,2]
[343587401,1732739440510,-500.0,9.999e-05,2]
[343587402,1732739440520,-500.0,9.999e-05,2]
[343587403,1732739440530,-500.0,9.999e-05,2]
[343587404,1732739440540,-500.0,9.999e-05,2]
[343587405,1732739440549,-500.0,9.999e-05,2]
[343587406,1732739440560,-171.68,9.999e-05,2]
[343587407,1732739440570,-500.0,9.999e-05,2]
[343587408,1732739440580,-500.0,9.999e-05,2]
[343587409,1732739440591,-500.0,9.999e-05,2]
[343587410,1732739440600,-592.99,9.999e-05,2]
[343587411,1732739440610,-500.0,9.999e-05,2]
[343587412,1732739440620,-188.38,9.999e-05,2]
[343587413,1732739440629,-500.0,9.999e-05,2]
[343587414,1732739440641,-500.0,9.999e-05,2]
[343587415,1732739440650,-500.0,9.999e-05,2]
[343587416,1732739440660,-500.0,9.999e-05,2]
[343587417,1732739440670,-518.14,9.999e-05,2]
[343587418,1732739440679,-500.0,9.999e-05,2]
[343587419,1732739440689,-500.0,9.999e-05,2]
[343587420,1732739440700,-500.0,9.999e-05,2]
[343587421,1732739440713,-625.1,9.999e-05,2]
[343587422,1732739440722,-500.0,9.999e-05,2]
[343587423,1732739440732,-545.02,9.999e-05,2]
[343587424,1732739440742,-505.65,9.999e-05,2]
[343587425,1732739440752,-1550.5224,9.999e-05,2]
[343587426,1732739440762,-500.0,9.999e-05,2]
[343587427,1732739440771,-500.0,9.999e-05,2]
[343587428,1732739440781,-500.0,9.999e-05,2]
[343587429,1732739440791,-468.23,9.999e-05,2]
[343587430,1732739440801,-500.0,9.999e-05,2]
[343587431,1732739440811,-580.92021438,9.999e-05,2]
[343587432,1732739440820,-508.8,9.999e-05,2]
[343587434,1732739440830,-500.0,9.999e-05,2]
[343587436,1732739440840,-426.04201073,9.999e-05,2]
[343587438,1732739440849,-500.0,9.999e-05,2]
[343587440,1732739440859,-500.0,9.999e-05,2]
[343587442,1732739440869,-500.0,9.999e-05,2]
[343587444,1732739440878,-445.32,9.999e-05,2]
[343587445,1732739440887,-500.0,9.999e-05,2]
[343587446,1732739440898,-500.0,9.999e-05,2]
[343587447,1732739440908,-346.01,9.999e-05,2]
[343587448,1732739440917,-500.0,9.999e-05,2]
[343587449,1732739440927,-589.54,9.999e-05,2]
[343587450,1732739440936,-500.0,9.999e-05,2]
[343587451,1732739440945,-231.68,9.999e-05,2]
[343587452,1732739440955,-500.0,9.999e-05,2]
[343587453,1732739440964,-500.0,9.999e-05,2]
[343587454,1732739441180,-500.0,9.999e-05,2]
[343587455,1732739441191,-500.0,9.999e-05,2]
[343587456,1732739441201,-617.58,9.999e-05,2]
[343587457,1732739441211,-500.0,9.999e-05,2]
[343587458,1732739441220,-500.0,9.999e-05,2]
[343587459,1732739441230,-500.0,9.999e-05,2]
[343587460,1732739441240,-508.28,9.999e-05,2]
[343587461,1732739441249,-500.0,9.999e-05,2]
[343587462,1732739441260,-500.0,9.999e-05,2]
[343587463,1732739441270,-423.31,9.999e-05,2]
[343587464,1732739441280,-500.0,9.999e-05,2]
[343587465,1732739441290,-334.28742952,9.999e-05,2]
[343587466,1732739441300,-500.0,9.999e-05,2]
[343587467,1732739441312,-500.0,9.999e-05,2]
[343587468,1732739441323,-500.0,9.999e-05,2]
[343587469,1732739441334,-500.0,9.999e-05,2]
[343587470,1732739441343,-500.0,9.999e-05,2]
[343587471,1732739441352,-500.0,9.999e-05,2]
[343587472,1732739441362,-360.7,9.999e-05,2]
[343587473,1732739441372,-575.45,9.999e-05,2]
[343587474,1732739441381,-611.62,9.999e-05,2]
[343587475,1732739441392,-500.0,9.999e-05,2]
[343587476,1732739441401,-201.8,9.999e-05,2]
[343587477,1732739441410,-500.0,9.999e-05,2]
[343587478,1732739441420,-610.02470068,9.999e-05,2]
[343587479,1732739441429,-500.0,9.999e-05,2]
[343587480,1732739441439,-500.0,9.999e-05,2]
[343587481,1732739441448,-215.82,9.999e-05,2]
[343587482,1732739441458,-500.0,9.999e-05,2]
[343587483,1732739441468,-500.0,9.999e-05,2]
[343587484,1732739441478,-500.0,9.999e-05,2]
[343587485,1732739441488,-500.0,9.999e-05,2]
[343587486,1732739441497,-500.0,9.999e-05,2]
[343587487,1732739441509,-500.0,9.999e-05,2]
[343587488,1732739441520,-591.72,9.999e-05,2]
[343587489,1732739441530,-500.0,9.999e-05,2]
[343587490,1732739441540,-500.0,9.999e-05,2]
[343587491,1732739441549,-500.0,9.999e-05,2]
[343587492,1732739441559,-500.0,9.999e-05,2]
[343587493,1732739441569,-500.0,9.999e-05,2]
[343587494,1732739441579,-500.0,9.999e-05,2]
[343587495,1732739441590,-296.44,9.999e-05,2]
[343587496,1732739441600,-500.0,9.999e-05,2]
[343587497,1732739441609,-500.0,9.999e-05,2]
[343587498,1732739441619,-500.0,9.999e-05,2]
[343587499,1732739441628,-500.0,9.999e-05,2]
[343587500,1732739441638,-500.0,9.999e-05,2]
[343587501,1732739441648,-273.69,9.999e-05,2]
[343587502,1732739441657,-500.0,9.999e-05,2]
[343587503,1732739441667,-500.0,9.999e-05,2]
[343587504,1732739441676,-501.45248272,9.999e-05,2]
[343587505,1732739441685,-500.0,9.999e-05,2]
[343587506,1732739441697,-500.0,9.999e-05,2]
[343587507,1732739441707,-500.0,9.999e-05,2]
[343587508,1732739441716,-500.0,9.999e-05,2]
[343587509,1732739441725,-285.79,9.999e-05,2]
[343587510,1732739441734,-594.66,9.999e-05,2]
[343587511,1732739441745,-500.0,9.999e-05,2]
[343587512,1732739441754,-500.0,9.999e-05,2]
[343587513,1732739441763,-500.0,9.999e-05,2]
[343587514,1732739441775,-500.0,9.999e-05,2]
[343587515,1732739441785,-500.0,9.999e-05,2]
[343587516,1732739441795,-500.0,9.999e-05,2]
[343587517,1732739441805,-500.0,9.999e-05,2]
[343587518,1732739441814,-591.38,9.999e-05,2]
[343587519,1732739441824,-500.0,9.999e-05,2]
[343587520,1732739441834,-500.0,9.999e-05,2]
[343587521,1732739441844,-500.0,9.999e-05,2]
[343587522,1732739441854,-500.0,9.999e-05,2]
[343587523,1732739441863,-500.0,9.999e-05,2]
[343587524,1732739441872,-189.69,9.999e-05,2]
[343587525,1732739441882,-500.0,9.999e-05,2]
[343587526,1732739441897,-500.0,9.999e-05,2]
[343587527,1732739441907,-373.56,9.999e-05,2]
[343587528,1732739441916,-500.0,9.999e-05,2]
[343587529,1732739441925,-230.2,9.999e-05,2]
[343587530,1732739441934,-525.21,9.999e-05,2]
[343587531,1732739441943,-500.0,9.999e-05,2]
[343587532,1732739441953,-500.0,9.999e-05,2]
[343587533,1732739441962,-391.03,9.999e-05,2]
[343587534,1732739441971,-500.0,9.999e-05,2]
[343587535,1732739441980,-500.0,9.999e-05,2]
[343587536,1732739441990,-500.0,9.999e-05,2]
[343587537,1732739441999,-500.0,9.999e-05,2]
[343587538,1732739442008,-500.0,9.999e-05,2]
[343587539,1732739442017,-500.0,9.999e-05,2]
[343587540,1732739442027,-279.89,9.999e-05,2]
[343587541,1732739442038,-500.0,9.999e-05,2]
[343587542,1732739442047,-500.0,9.999e-05,2]
[343587543,1732739442057,-500.0,9.999e-05,2]
[343587544,1732739442067,-500.0,9.999e-05,2]
[343587545,1732739442076,-508.84,9.999e-05,2]
[343587546,1732739442085,-500.0,9.999e-05,2]
[343587547,1732739442096,-500.0,9.999e-05,2]
[343587548,1732739442105,-585.11,9.999e-05,2]
[343587549,1732739442115,-528.38245725,9.999e-05,2]
[343587550,1732739442124,-500.0,9.999e-05,2]
[343587551,1732739442134,-161.7,9.999e-05,2]
[343587552,1732739442148,-1314.65367089,9.999e-05,2]
[343587553,1732739442157,-500.0,9.999e-05,2]
[343587554,1732739442166,-500.0,9.999e-05,2]
[343587555,1732739442176,-500.0,9.999e-05,2]
[343587556,1732739442185,-500.0,9.999e-05,2]
[343587557,1732739442194,-500.0,9.999e-05,2]
[343587558,1732739442203,-500.0,9.999e-05,2]
[343587559,1732739442212,-500.0,9.999e-05,2]
[343587560,1732739442221,-479.68,9.999e-05,2]
[343587561,1732739442230,-582.14,9.999e-05,2]
[343587562,1732739442239,-500.0,9.999e-05,2]
[343587563,1732739442247,-500.0,9.999e-05,2]
[343587564,1732739442256,-509.95,9.999e-05,2]
[343587565,1732739442266,-612.44,9.999e-05,2]
[343587566,1732739442275,-500.0,9.999e-05,2]
[343587567,1732739442286,-500.0,9.999e-05,2]
[343587568,1732739442296,-500.0,9.999e-05,2]
[343587569,1732739442306,-500.0,9.999e-05,2]
[343587570,1732739442315,-500.0,9.999e-05,2]
[343587571,1732739442324,-646.19,9.999e-05,2]
[343587572,1732739442334,-480.0,9.999e-05,2]
[343587573,1732739442345,-500.0,9.999e-05,2]
[343587574,1732739442354,-500.0,9.999e-05,2]
[343587575,1732739442363,-500.0,9.999e-05,2]
[343587576,1732739442374,-500.0,9.999e-05,2]
[343587577,1732739442383,-500.0,9.999e-05,2]
[343587578,1732739442396,-500.0,9.999e-05,2]
[343587579,1732739442405,-628.65,9.999e-05,2]
[343587580,1732739442414,-500.0,9.999e-05,2]
[343587581,1732739442424,-500.0,9.999e-05,2]
[343587582,1732739442433,-500.0,9.999e-05,2]
[343587583,1732739442442,-500.0,9.999e-05,2]
[343587584,1732739442452,-500.0,9.999e-05,2]
[343587585,1732739442462,-500.0,9.999e-05,2]
[343587586,1732739442471,-500.0,9.999e-05,2]
[343587587,1732739442481,-472.76,9.999e-05,2]
[343587588,1732739442490,-500.0,9.999e-05,2]
[343587589,1732739442499,-561.58,9.999e-05,2]
[343587590,1732739442508,-500.0,9.999e-05,2]
[343587591,1732739442518,-500.0,9.999e-05,2]
[343587592,1732739442529,-238.62,9.999e-05,2]
[343587593,1732739442538,-500.0,9.999e-05,2]
[343587594,1732739442548,-209.98,9.999e-05,2]
[343587595,1732739442558,-502.72,9.999e-05,2]
[343587596,1732739442568,-500.0,9.999e-05,2]
[343587597,1732739442577,-505.52,9.999e-05,2]
[343587598,1732739442586,-505.52,9.999e-05,2]
[343587599,1732739442596,-505.52,9.999e-05,2]
[343587600,1732739442605,-505.52,9.999e-05,2]
[343587601,1732739442614,-505.52,9.999e-05,2]
[343587602,1732739442623,-505.52,9.999e-05,2]
[343587603,1732739442632,-505.52,9.999e-05,2]
[343587604,1732739442644,-629.6,9.999e-05,2]
[343587605,1732739442654,-505.52,9.999e-05,2]
[343587606,1732739442663,-629.6,9.999e-05,2]
[343587607,1732739442672,-505.52,9.999e-05,2]
[343587608,1732739442681,-629.6,9.999e-05,2]
[343587609,1732739442690,-505.52,9.999e-05,2]
[343587610,1732739442701,-629.6,9.999e-05,2]
[343587611,1732739442716,-505.52,9.999e-05,2]
[343587612,1732739442725,-629.6,9.999e-05,2]
[343587613,1732739442734,-505.52,9.999e-05,2]
[343587614,1732739442743,-629.6,9.999e-05,2]
[343587615,1732739442753,-629.6,9.999e-05,2]
[343587616,1732739442763,-505.52,9.999e-05,2]
[343587617,1732739442774,-629.6,9.999e-05,2]
[343587618,1732739442784,-500.0,9.999e-05,2]
[343587619,1732739442794,-505.52,9.999e-05,2]
[343587620,1732739442804,-629.6,9.999e-05,2]
[343587621,1732739442814,-505.52,9.999e-05,2]
[343587622,1732739442823,-505.73916122,9.999e-05,2]
[343587623,1732739442833,-629.6,9.999e-05,2]
[343587624,1732739442842,-629.6,9.999e-05,2]
[343587625,1732739442853,-629.6,9.999e-05,2]
[343587626,1732739442862,-629.6,9.999e-05,2]
[343587627,1732739442871,-629.6,9.999e-05,2]
[343587628,1732739442881,-629.6,9.999e-05,2]
[343587629,1732739442889,-629.72,9.999e-05,2]
[343587630,1732739442904,-500.0,9.999e-05,2]
[343587631,1732739442914,-636.20813543,9.999e-05,2]
[343587632,1732739442923,-500.0,9.999e-05,2]
[343587633,1732739442933,-522.33,9.999e-05,2]
[343587634,1732739442942,-500.0,9.999e-05,2]
[343587635,1732739442951,-500.0,9.999e-05,2]
[343587636,1732739442960,-500.0,9.999e-05,2]
[343587637,1732739442970,-500.0,9.999e-05,2]
[343587638,1732739442979,-153.164236,9.999e-05,2]
[343587639,1732739442989,-500.0,9.999e-05,2]
[343587640,1732739442998,-500.0,9.999e-05,2]
[343587641,1732739443008,-500.0,9.999e-05,2]
[343587642,1732739443018,-500.0,9.999e-05,2]
[343587643,1732739443027,-500.0,9.999e-05,2]
[343587644,1732739443037,-500.0,9.999e-05,2]
[343587645,1732739443046,-500.0,9.999e-05,2]
[343587646,1732739443056,-500.0,9.999e-05,2]
[343587647,1732739443065,-500.0,9.999e-05,2]
[343587648,1732739443076,-500.0,9.999e-05,2]
[343587649,1732739443085,-637.03,9.999e-05,2]
[343587650,1732739443095,-500.0,9.999e-05,2]
[343587651,1732739443105,-625.24,9.999e-05,2]
[343587652,1732739443115,-528.38245725,9.999e-05,2]
[343587653,1732739443124,-528.38245725,9.999e-05,2]
[343587654,1732739443133,-528.38245725,9.999e-05,2]
[343587656,1732739443146,-528.38245725,9.999e-05,2]
[343587658,1732739443156,-528.38245725,0.0001,2]
[343587660,1732739443165,-528.38245725,0.0001,2]
[343587661,1732739443174,-528.38245725,0.0001,2]
[343587662,1732739443183,-528.38245725,0.0001,2]
[343587663,1732739443193,-562.0,0.0001,2]
[343587665,1732739443201,-1931.0,0.0001,2]
[343587667,1732739443210,-816.0,0.0001,2]
[343587668,1732739443219,-1263.0,0.0001,2]
[343587670,1732739443228,-3756.0,0.0001,2]
[343587672,1732739443237,-3522.0,0.0001,2]
[343587674,1732739443246,-534.0,0.0001,2]
[343587675,1732739443254,-978.0,0.0001,2]
[343587677,1732739443263,-1096.0,0.0001,2]
[343587679,1732739443272,-3227.30074939,0.0001,2]
[343587681,1732739443281,-3227.30074937,0.0001,2]
[343587683,1732739443291,-3227.30074937,0.0001,2]
[343587685,1732739443300,-3227.30074937,0.0001,2]
[343587686,1732739443310,-3227.30074937,0.0001,2]
[343587687,1732739443319,-3227.30074937,0.0001,2]
[343587688,1732739443329,-3227.30074937,0.0001,2]
[343587689,1732739443338,-3227.30074937,0.0001,2]
[343587690,1732739443347,-3227.30074937,0.0001,2]
[343587691,1732739443357,-565.0,0.0001,2]
[343587692,1732739443367,-156.126,0.0001,2]
[343587693,1732739443378,-633.0,0.0001,2]
[343587694,1732739443387,-1259.0,0.0001,2]
[343587695,1732739443400,-5953.0,0.0001,2]
[343587696,1732739443409,-1164.0,0.0001,2]
[343587698,1732739443419,-20000.0,0.0001,2]
[343587699,1732739443428,-3086681.76599283,0.0001,2]
[343587704,1732739443727,-1997.91336861,0.0001,2]
[343587705,1732739443739,-2021.97001419,0.0001,2]
[343587706,1732739443914,-27955.18019214,0.0001,2]
[343587707,1732739443926,-13157.861482,0.0001,2]
[343587708,1732739443937,-18212.1623442,0.0001,2]
[343587709,1732739443948,-56165.48897704,0.0001,2]
[343587710,1732739443990,-3619.0,0.0001,2]
[343587711,1732739444002,-1977.9552874,0.0001,2]
[343587712,1732739444012,-1708.709934,0.0001,2]
[343587719,1732739444133,-827.247693,0.0001,2]
[343587723,1732739444168,-1268.05,0.0001,2]
[343587726,1732739444184,-4287.0370856,0.0001,2]
[343587728,1732739444193,-10190.99669221,0.0001,2]
[343587730,1732739444204,-3401.095,0.0001,2]
[343587732,1732739444215,-416.01315,0.0001,2]
[343587734,1732739444226,-963.12,0.0001,2]
[343587737,1732739444237,-3033.41888,0.0001,2]
[343587738,1732739444376,-165.58,9.692e-05,2]
[343587739,1732739444386,-1000.0,9.898e-05,2]
[343587740,1732739444397,-1674.94,0.0001,2]
[343587741,1732739444408,-324.06,0.0001,2]
[343587743,1732739444417,-1733.70702144,0.0001,2]
[343587745,1732739444428,-50225.15174332,0.0001,2]
[343587748,1732739444439,-145630.58000005,0.0001,2]
[343587750,1732739444450,-4827.31066454,0.0001,2]
[343587752,1732739444461,-6003.44717581,0.0001,2]
[343587754,1732739444473,-5190.84419578,0.0001,2]
[343587757,1732739444487,-507.7226376,0.0001,2]
[343587761,1732739444517,-7365.79800451,0.0001,2]
[343587764,1732739444532,-486.69645,0.0001,2]
[343587766,1732739444543,-733601.02508241,0.0001,2]
[343587769,1732739444564,-548.0932,0.0001,2]
[343587771,1732739444579,-1149.369636,0.0001,2]
[343587773,1732739444590,-4628.727316,0.0001,2]
[343587775,1732739444601,-2142.549585,0.0001,2]
[343587787,1732739446330,-389.16614815,0.0001,2]
[343587788,1732739446342,-38896.93512022,0.0001,2]
[343587789,1732739446446,-59679.32326224,0.0001,2]
[343587790,1732739446458,-52578.80739775,0.0001,2]
[343587791,1732739446471,-31335.360575,0.0001,2]
[343587792,1732739446483,-87354.21056,0.0001,2]
[343587793,1732739446513,-500.0,9.998e-05,2]
[343587794,1732739446523,-224.07931877,0.0001,2]
[343587795,1732739446572,-406.4527777,0.0001,2]
[343587796,1732739446634,-2663.6308,9.899e-05,2]
[343587797,1732739446648,-402.394633,0.0001,2]
[343587798,1732739446659,-15019.7622722,0.0001,2]
[343587929,1732739510800,-213.17,0.00016658,30]
[343587930,1732739510833,-213.17,0.00019242,30]
[343587931,1732739510871,-213.17,0.00021826,30]
[343587932,1732739510903,-213.17,0.0002441,30]
[343587933,1732739510933,-9147.32,0.00026,120]
[343587936,1732740239740,-268.5,8.219e-05,2]
[343587950,1732740631557,-1764.1,8.219e-05,2]
[343587951,1732740631568,-1781.77,8.608e-05,2]
[343587952,1732740631577,-297.63280432,8.622e-05,2]
[343587953,1732740631587,-161.01,8.622e-05,2]
[343587954,1732740631596,-153.5,8.623e-05,2]
[343587955,1732740631606,-250.0,8.627e-05,2]
[343587956,1732740631616,-166.9054159,8.627e-05,2]
[343587957,1732740631625,-166.90541589,8.713e-05,2]
[343587958,1732740631635,-250.0,8.713e-05,2]
[343587959,1732740631644,-2367.56,8.718e-05,2]
[343587960,1732740631653,-366.13,8.719e-05,2]
[343587961,1732740631666,-7330.8,8.726e-05,2]
[343587962,1732740631676,-161.0,8.738e-05,2]
[343587963,1732740631685,-1500.0,8.759e-05,2]
[343587964,1732740631695,-250.0,8.771e-05,2]
[343587965,1732740631704,-150.0,8.795e-05,2]
[343587966,1732740631713,-500.0,8.81e-05,3]
[343587967,1732740631722,-1000.0,8.815e-05,2]
[343587968,1732740631731,-968.73,8.849e-05,2]
[343587969,1732740631740,-792.63,8.894e-05,2]
[343587970,1732740631750,-150.0,9e-05,2]
[343587971,1732740631759,-200.0,9e-05,3]
[343587972,1732740631768,-434.45,9.041e-05,2]
[343587973,1732740631777,-766.28,9.041e-05,2]
[343587974,1732740631786,-434.45,9.041e-05,2]
[343587975,1732740631797,-766.28,9.041e-05,2]
[343587976,1732740631806,-434.45,9.041e-05,2]
[343587977,1732740631815,-766.28,9.041e-05,2]
[343587978,1732740631825,-434.45,9.041e-05,2]
[343587979,1732740631835,-766.28,9.041e-05,2]
[343587980,1732740631844,-434.45,9.041e-05,2]
[343587981,1732740631854,-434.45,9.041e-05,2]
[343587982,1732740631863,-434.45,9.041e-05,2]
[343587983,1732740631872,-500.0,9.1e-05,3]
[343587984,1732740631881,-150.0,9.177e-05,2]
[343587985,1732740631890,-150.0,9.178e-05,2]
[343587986,1732740631900,-150.0,9.178e-05,2]
[343587987,1732740631910,-150.0,9.178e-05,2]
[343587988,1732740631919,-434.46,9.178e-05,2]
[343587989,1732740631929,-150.96,9.178e-05,2]
[343587990,1732740631938,-150.0,9.178e-05,2]
[343587991,1732740631948,-150.0,9.178e-05,2]
[343587992,1732740631958,-363.48,9.178e-05,2]
[343587993,1732740631968,-150.0,9.178e-05,2]
[343587994,1732740631978,-363.48,9.178e-05,2]
[343587995,1732740631987,-150.0,9.178e-05,2]
[343587996,1732740631997,-434.46,9.178e-05,2]
[343587997,1732740632006,-434.46,9.178e-05,2]
[343587998,1732740632016,-150.0,9.178e-05,2]
[343587999,1732740632025,-150.0,9.178e-05,2]
[343588000,1732740632035,-363.48,9.178e-05,2]
[343588001,1732740632044,-150.0,9.178e-05,2]
[343588002,1732740632054,-434.46,9.178e-05,2]
[343588003,1732740632063,-150.0,9.178e-05,2]
[343588004,1732740632077,-150.0,9.178e-05,2]
[343588005,1732740632087,-434.46,9.178e-05,2]
[343588006,1732740632096,-150.0,9.178e-05,2]
[343588007,1732740632107,-150.0,9.178e-05,2]
[343588008,1732740632117,-150.0,9.178e-05,2]
[343588009,1732740632126,-434.46,9.178e-05,2]
[343588010,1732740632135,-220.76,9.178e-05,2]
[343588011,1732740632146,-150.0,9.178e-05,2]
[343588012,1732740632156,-434.46,9.178e-05,2]
[343588013,1732740632169,-150.0,9.178e-05,2]
[343588014,1732740632179,-800.0,9.2e-05,3]
[343588015,1732740632188,-1000.0,9.3e-05,3]
[343588016,1732740632198,-25634.0,9.311e-05,2]
[343588017,1732740632208,-1300.0,9.4e-05,3]
[343588018,1732740632217,-1000.0,9.409e-05,2]
[343588019,1732740632227,-150.0,9.452e-05,2]
[343588020,1732740632237,-200.0,9.5e-05,3]
[343588021,1732740632246,-400.0,9.589e-05,2]
[343588022,1732740632256,-200.0,9.6e-05,3]
[343588023,1732740632267,-163.27,9.604e-05,2]
[343588024,1732740632276,-23799.19,9.67e-05,2]
[343588025,1732740632286,-228.1,9.67e-05,2]
[343588026,1732740632296,-150.99,9.67e-05,2]
[343588027,1732740632306,-999.99,9.67e-05,2]
[343588028,1732740632316,-838.3,9.67e-05,2]
[343588029,1732740632326,-150.99,9.67e-05,2]
[343588030,1732740632335,-299.99,9.67e-05,2]
[343588031,1732740632346,-200.0,9.7e-05,3]
[343588032,1732740632356,-150.0,9.731e-05,2]
[343588033,1732740632366,-150.0,9.735e-05,2]
[343588034,1732740632376,-1500.0,9.738e-05,2]
[343588035,1732740632386,-150.0,9.739e-05,2]
[343588036,1732740632395,-150.0,9.741e-05,2]
[343588037,1732740632405,-150.0,9.742e-05,2]
[343588038,1732740632417,-150.0,9.742e-05,2]
[343588039,1732740632432,-151.88493693,9.75e-05,2]
[343588040,1732740632442,-150.0,9.756e-05,2]
[343588041,1732740632451,-150.0,9.757e-05,2]
[343588042,1732740632460,-150.0,9.759e-05,2]
[343588043,1732740632469,-150.0,9.76e-05,2]
[343588044,1732740632479,-300.0,9.76e-05,2]
[343588045,1732740632488,-150.0,9.761e-05,2]
[343588046,1732740632498,-150.0,9.766e-05,2]